{"text_format":"3","workbook":"xlsx","n_sheets":3,"sheets":["Розклад","Введення даних","Пошук за іменем"],"not_rendered":{"defined_names":5},"read":"whole","date_system":"1900"}

{"sheet":"Розклад","index":0,"n_rows":23,"n_cols":9,"rows_kept":23,"merged":[[1,1,2,3]]}
[]
[null,"РОЗКЛАД НА ДЕНЬ",{"$nulls":4},"На тиждень із","Показати розклад для: "]
[{"$nulls":5},{"$f":"WEEKDAY(Тиждень_із,1)","v":3},"2012-07-03","Мар’ян"]
[null,null,{"$f":"$F$3=COLUMN(A$1)","v":false},{"$f":"$F$3=COLUMN(B$1)","v":false},true,false,false,false,false]
[null,null,{"$f":"COLUMN(A$1)-MATCH(TRUE,$C$4:$I$4,0)+Тиждень_із+1","v":"2012-07-02"},"2012-07-03","2012-07-04","2012-07-05","2012-07-06","2012-07-07","2012-07-08"]
[null,"ЧАС","ПОНЕДІЛОК","ВІВТОРОК","СЕРЕДА","ЧЕТВЕР","П’ЯТНИЦЯ","СУБОТА","НЕДІЛЯ"]
[null,"06:00:00",{"$f":"IFERROR(INDEX(tblДані[],MATCH(C$5+$B7&Відображення_імені,tblДані[ДАТА Й ЧАС]&tblДані[ХТО],0),3),\"\")","v":""},{"$f":"IFERROR(INDEX(tblДані[],MATCH(D$5+$B7&Відображення_імені,tblДані[ДАТА Й ЧАС]&tblДані[ХТО],0),3),\"\")","v":""},{"$f":"IFERROR(INDEX(tblДані[],MATCH(E$5+$B7&Відображення_імені,tblДані[ДАТА Й ЧАС]&tblДані[ХТО],0),3),\"\")","v":""},{"$f":"IFERROR(INDEX(tblДані[],MATCH(F$5+$B7&Відображення_імені,tblДані[ДАТА Й ЧАС]&tblДані[ХТО],0),3),\"\")","v":""},{"$f":"IFERROR(INDEX(tblДані[],MATCH(G$5+$B7&Відображення_імені,tblДані[ДАТА Й ЧАС]&tblДані[ХТО],0),3),\"\")","v":""},{"$f":"IFERROR(INDEX(tblДані[],MATCH(H$5+$B7&Відображення_імені,tblДані[ДАТА Й ЧАС]&tblДані[ХТО],0),3),\"\")","v":""},{"$f":"IFERROR(INDEX(tblДані[],MATCH(I$5+$B7&Відображення_імені,tblДані[ДАТА Й ЧАС]&tblДані[ХТО],0),3),\"\")","v":""}]
[null,"07:00:00",{"$f":"IFERROR(INDEX(tblДані[],MATCH(C$5+$B8&Відображення_імені,tblДані[ДАТА Й ЧАС]&tblДані[ХТО],0),3),\"\")","v":""},{"$f":"IFERROR(INDEX(tblДані[],MATCH(D$5+$B8&Відображення_імені,tblДані[ДАТА Й ЧАС]&tblДані[ХТО],0),3),\"\")","v":""},{"$f":"IFERROR(INDEX(tblДані[],MATCH(E$5+$B8&Відображення_імені,tblДані[ДАТА Й ЧАС]&tblДані[ХТО],0),3),\"\")","v":""},{"$f":"IFERROR(INDEX(tblДані[],MATCH(F$5+$B8&Відображення_імені,tblДані[ДАТА Й ЧАС]&tblДані[ХТО],0),3),\"\")","v":""},{"$f":"IFERROR(INDEX(tblДані[],MATCH(G$5+$B8&Відображення_імені,tblДані[ДАТА Й ЧАС]&tblДані[ХТО],0),3),\"\")","v":""},{"$f":"IFERROR(INDEX(tblДані[],MATCH(H$5+$B8&Відображення_імені,tblДані[ДАТА Й ЧАС]&tblДані[ХТО],0),3),\"\")","v":""},{"$f":"IFERROR(INDEX(tblДані[],MATCH(I$5+$B8&Відображення_імені,tblДані[ДАТА Й ЧАС]&tblДані[ХТО],0),3),\"\")","v":""}]
[null,"08:00:00",{"$f":"IFERROR(INDEX(tblДані[],MATCH(C$5+$B9&Відображення_імені,tblДані[ДАТА Й ЧАС]&tblДані[ХТО],0),3),\"\")","v":""},{"$f":"IFERROR(INDEX(tblДані[],MATCH(D$5+$B9&Відображення_імені,tblДані[ДАТА Й ЧАС]&tblДані[ХТО],0),3),\"\")","v":""},{"$f":"IFERROR(INDEX(tblДані[],MATCH(E$5+$B9&Відображення_імені,tblДані[ДАТА Й ЧАС]&tblДані[ХТО],0),3),\"\")","v":""},{"$f":"IFERROR(INDEX(tblДані[],MATCH(F$5+$B9&Відображення_імені,tblДані[ДАТА Й ЧАС]&tblДані[ХТО],0),3),\"\")","v":""},{"$f":"IFERROR(INDEX(tblДані[],MATCH(G$5+$B9&Відображення_імені,tblДані[ДАТА Й ЧАС]&tblДані[ХТО],0),3),\"\")","v":""},{"$f":"IFERROR(INDEX(tblДані[],MATCH(H$5+$B9&Відображення_імені,tblДані[ДАТА Й ЧАС]&tblДані[ХТО],0),3),\"\")","v":""},{"$f":"IFERROR(INDEX(tblДані[],MATCH(I$5+$B9&Відображення_імені,tblДані[ДАТА Й ЧАС]&tblДані[ХТО],0),3),\"\")","v":""}]
[null,"09:00:00",{"$f":"IFERROR(INDEX(tblДані[],MATCH(C$5+$B10&Відображення_імені,tblДані[ДАТА Й ЧАС]&tblДані[ХТО],0),3),\"\")","v":""},{"$f":"IFERROR(INDEX(tblДані[],MATCH(D$5+$B10&Відображення_імені,tblДані[ДАТА Й ЧАС]&tblДані[ХТО],0),3),\"\")","v":""},{"$f":"IFERROR(INDEX(tblДані[],MATCH(E$5+$B10&Відображення_імені,tblДані[ДАТА Й ЧАС]&tblДані[ХТО],0),3),\"\")","v":""},{"$f":"IFERROR(INDEX(tblДані[],MATCH(F$5+$B10&Відображення_імені,tblДані[ДАТА Й ЧАС]&tblДані[ХТО],0),3),\"\")","v":""},{"$f":"IFERROR(INDEX(tblДані[],MATCH(G$5+$B10&Відображення_імені,tblДані[ДАТА Й ЧАС]&tblДані[ХТО],0),3),\"\")","v":""},{"$f":"IFERROR(INDEX(tblДані[],MATCH(H$5+$B10&Відображення_імені,tblДані[ДАТА Й ЧАС]&tblДані[ХТО],0),3),\"\")","v":""},{"$f":"IFERROR(INDEX(tblДані[],MATCH(I$5+$B10&Відображення_імені,tblДані[ДАТА Й ЧАС]&tblДані[ХТО],0),3),\"\")","v":""}]
[null,"10:00:00",{"$f":"IFERROR(INDEX(tblДані[],MATCH(C$5+$B11&Відображення_імені,tblДані[ДАТА Й ЧАС]&tblДані[ХТО],0),3),\"\")","v":""},{"$f":"IFERROR(INDEX(tblДані[],MATCH(D$5+$B11&Відображення_імені,tblДані[ДАТА Й ЧАС]&tblДані[ХТО],0),3),\"\")","v":""},{"$f":"IFERROR(INDEX(tblДані[],MATCH(E$5+$B11&Відображення_імені,tblДані[ДАТА Й ЧАС]&tblДані[ХТО],0),3),\"\")","v":"Парад у центрі міста"},{"$f":"IFERROR(INDEX(tblДані[],MATCH(F$5+$B11&Відображення_імені,tblДані[ДАТА Й ЧАС]&tblДані[ХТО],0),3),\"\")","v":""},{"$f":"IFERROR(INDEX(tblДані[],MATCH(G$5+$B11&Відображення_імені,tblДані[ДАТА Й ЧАС]&tblДані[ХТО],0),3),\"\")","v":""},{"$f":"IFERROR(INDEX(tblДані[],MATCH(H$5+$B11&Відображення_імені,tblДані[ДАТА Й ЧАС]&tblДані[ХТО],0),3),\"\")","v":""},{"$f":"IFERROR(INDEX(tblДані[],MATCH(I$5+$B11&Відображення_імені,tblДані[ДАТА Й ЧАС]&tblДані[ХТО],0),3),\"\")","v":""}]
[null,"11:00:00",{"$f":"IFERROR(INDEX(tblДані[],MATCH(C$5+$B12&Відображення_імені,tblДані[ДАТА Й ЧАС]&tblДані[ХТО],0),3),\"\")","v":""},{"$f":"IFERROR(INDEX(tblДані[],MATCH(D$5+$B12&Відображення_імені,tblДані[ДАТА Й ЧАС]&tblДані[ХТО],0),3),\"\")","v":""},{"$f":"IFERROR(INDEX(tblДані[],MATCH(E$5+$B12&Відображення_імені,tblДані[ДАТА Й ЧАС]&tblДані[ХТО],0),3),\"\")","v":""},{"$f":"IFERROR(INDEX(tblДані[],MATCH(F$5+$B12&Відображення_імені,tblДані[ДАТА Й ЧАС]&tblДані[ХТО],0),3),\"\")","v":""},{"$f":"IFERROR(INDEX(tblДані[],MATCH(G$5+$B12&Відображення_імені,tblДані[ДАТА Й ЧАС]&tblДані[ХТО],0),3),\"\")","v":"Пікнік із родичами"},{"$f":"IFERROR(INDEX(tblДані[],MATCH(H$5+$B12&Відображення_імені,tblДані[ДАТА Й ЧАС]&tblДані[ХТО],0),3),\"\")","v":""},{"$f":"IFERROR(INDEX(tblДані[],MATCH(I$5+$B12&Відображення_імені,tblДані[ДАТА Й ЧАС]&tblДані[ХТО],0),3),\"\")","v":""}]
[null,"12:00:00",{"$f":"IFERROR(INDEX(tblДані[],MATCH(C$5+$B13&Відображення_імені,tblДані[ДАТА Й ЧАС]&tblДані[ХТО],0),3),\"\")","v":""},{"$f":"IFERROR(INDEX(tblДані[],MATCH(D$5+$B13&Відображення_імені,tblДані[ДАТА Й ЧАС]&tblДані[ХТО],0),3),\"\")","v":""},{"$f":"IFERROR(INDEX(tblДані[],MATCH(E$5+$B13&Відображення_імені,tblДані[ДАТА Й ЧАС]&tblДані[ХТО],0),3),\"\")","v":""},{"$f":"IFERROR(INDEX(tblДані[],MATCH(F$5+$B13&Відображення_імені,tblДані[ДАТА Й ЧАС]&tblДані[ХТО],0),3),\"\")","v":""},{"$f":"IFERROR(INDEX(tblДані[],MATCH(G$5+$B13&Відображення_імені,tblДані[ДАТА Й ЧАС]&tblДані[ХТО],0),3),\"\")","v":""},{"$f":"IFERROR(INDEX(tblДані[],MATCH(H$5+$B13&Відображення_імені,tblДані[ДАТА Й ЧАС]&tblДані[ХТО],0),3),\"\")","v":""},{"$f":"IFERROR(INDEX(tblДані[],MATCH(I$5+$B13&Відображення_імені,tblДані[ДАТА Й ЧАС]&tblДані[ХТО],0),3),\"\")","v":""}]
[null,"13:00:00",{"$f":"IFERROR(INDEX(tblДані[],MATCH(C$5+$B14&Відображення_імені,tblДані[ДАТА Й ЧАС]&tblДані[ХТО],0),3),\"\")","v":""},{"$f":"IFERROR(INDEX(tblДані[],MATCH(D$5+$B14&Відображення_імені,tblДані[ДАТА Й ЧАС]&tblДані[ХТО],0),3),\"\")","v":""},{"$f":"IFERROR(INDEX(tblДані[],MATCH(E$5+$B14&Відображення_імені,tblДані[ДАТА Й ЧАС]&tblДані[ХТО],0),3),\"\")","v":""},{"$f":"IFERROR(INDEX(tblДані[],MATCH(F$5+$B14&Відображення_імені,tblДані[ДАТА Й ЧАС]&tblДані[ХТО],0),3),\"\")","v":""},{"$f":"IFERROR(INDEX(tblДані[],MATCH(G$5+$B14&Відображення_імені,tblДані[ДАТА Й ЧАС]&tblДані[ХТО],0),3),\"\")","v":""},{"$f":"IFERROR(INDEX(tblДані[],MATCH(H$5+$B14&Відображення_імені,tblДані[ДАТА Й ЧАС]&tblДані[ХТО],0),3),\"\")","v":""},{"$f":"IFERROR(INDEX(tblДані[],MATCH(I$5+$B14&Відображення_імені,tblДані[ДАТА Й ЧАС]&tblДані[ХТО],0),3),\"\")","v":""}]
[null,"14:00:00",{"$f":"IFERROR(INDEX(tblДані[],MATCH(C$5+$B15&Відображення_імені,tblДані[ДАТА Й ЧАС]&tblДані[ХТО],0),3),\"\")","v":""},{"$f":"IFERROR(INDEX(tblДані[],MATCH(D$5+$B15&Відображення_імені,tblДані[ДАТА Й ЧАС]&tblДані[ХТО],0),3),\"\")","v":""},{"$f":"IFERROR(INDEX(tblДані[],MATCH(E$5+$B15&Відображення_імені,tblДані[ДАТА Й ЧАС]&tblДані[ХТО],0),3),\"\")","v":""},{"$f":"IFERROR(INDEX(tblДані[],MATCH(F$5+$B15&Відображення_імені,tblДані[ДАТА Й ЧАС]&tblДані[ХТО],0),3),\"\")","v":""},{"$f":"IFERROR(INDEX(tblДані[],MATCH(G$5+$B15&Відображення_імені,tblДані[ДАТА Й ЧАС]&tblДані[ХТО],0),3),\"\")","v":""},{"$f":"IFERROR(INDEX(tblДані[],MATCH(H$5+$B15&Відображення_імені,tblДані[ДАТА Й ЧАС]&tblДані[ХТО],0),3),\"\")","v":""},{"$f":"IFERROR(INDEX(tblДані[],MATCH(I$5+$B15&Відображення_імені,tblДані[ДАТА Й ЧАС]&tblДані[ХТО],0),3),\"\")","v":""}]
[null,"15:00:00",{"$f":"IFERROR(INDEX(tblДані[],MATCH(C$5+$B16&Відображення_імені,tblДані[ДАТА Й ЧАС]&tblДані[ХТО],0),3),\"\")","v":""},{"$f":"IFERROR(INDEX(tblДані[],MATCH(D$5+$B16&Відображення_імені,tblДані[ДАТА Й ЧАС]&tblДані[ХТО],0),3),\"\")","v":""},{"$f":"IFERROR(INDEX(tblДані[],MATCH(E$5+$B16&Відображення_імені,tblДані[ДАТА Й ЧАС]&tblДані[ХТО],0),3),\"\")","v":""},{"$f":"IFERROR(INDEX(tblДані[],MATCH(F$5+$B16&Відображення_імені,tblДані[ДАТА Й ЧАС]&tblДані[ХТО],0),3),\"\")","v":""},{"$f":"IFERROR(INDEX(tblДані[],MATCH(G$5+$B16&Відображення_імені,tblДані[ДАТА Й ЧАС]&tblДані[ХТО],0),3),\"\")","v":""},{"$f":"IFERROR(INDEX(tblДані[],MATCH(H$5+$B16&Відображення_імені,tblДані[ДАТА Й ЧАС]&tblДані[ХТО],0),3),\"\")","v":""},{"$f":"IFERROR(INDEX(tblДані[],MATCH(I$5+$B16&Відображення_імені,tblДані[ДАТА Й ЧАС]&tblДані[ХТО],0),3),\"\")","v":""}]
[null,"16:00:00",{"$f":"IFERROR(INDEX(tblДані[],MATCH(C$5+$B17&Відображення_імені,tblДані[ДАТА Й ЧАС]&tblДані[ХТО],0),3),\"\")","v":""},{"$f":"IFERROR(INDEX(tblДані[],MATCH(D$5+$B17&Відображення_імені,tblДані[ДАТА Й ЧАС]&tblДані[ХТО],0),3),\"\")","v":"Виїзд на дачу"},{"$f":"IFERROR(INDEX(tblДані[],MATCH(E$5+$B17&Відображення_імені,tblДані[ДАТА Й ЧАС]&tblДані[ХТО],0),3),\"\")","v":""},{"$f":"IFERROR(INDEX(tblДані[],MATCH(F$5+$B17&Відображення_імені,tblДані[ДАТА Й ЧАС]&tblДані[ХТО],0),3),\"\")","v":""},{"$f":"IFERROR(INDEX(tblДані[],MATCH(G$5+$B17&Відображення_імені,tblДані[ДАТА Й ЧАС]&tblДані[ХТО],0),3),\"\")","v":""},{"$f":"IFERROR(INDEX(tblДані[],MATCH(H$5+$B17&Відображення_імені,tblДані[ДАТА Й ЧАС]&tblДані[ХТО],0),3),\"\")","v":""},{"$f":"IFERROR(INDEX(tblДані[],MATCH(I$5+$B17&Відображення_імені,tblДані[ДАТА Й ЧАС]&tblДані[ХТО],0),3),\"\")","v":""}]
[null,"17:00:00",{"$f":"IFERROR(INDEX(tblДані[],MATCH(C$5+$B18&Відображення_імені,tblДані[ДАТА Й ЧАС]&tblДані[ХТО],0),3),\"\")","v":""},{"$f":"IFERROR(INDEX(tblДані[],MATCH(D$5+$B18&Відображення_імені,tblДані[ДАТА Й ЧАС]&tblДані[ХТО],0),3),\"\")","v":""},{"$f":"IFERROR(INDEX(tblДані[],MATCH(E$5+$B18&Відображення_імені,tblДані[ДАТА Й ЧАС]&tblДані[ХТО],0),3),\"\")","v":""},{"$f":"IFERROR(INDEX(tblДані[],MATCH(F$5+$B18&Відображення_імені,tblДані[ДАТА Й ЧАС]&tblДані[ХТО],0),3),\"\")","v":""},{"$f":"IFERROR(INDEX(tblДані[],MATCH(G$5+$B18&Відображення_імені,tblДані[ДАТА Й ЧАС]&tblДані[ХТО],0),3),\"\")","v":""},{"$f":"IFERROR(INDEX(tblДані[],MATCH(H$5+$B18&Відображення_імені,tblДані[ДАТА Й ЧАС]&tblДані[ХТО],0),3),\"\")","v":""},{"$f":"IFERROR(INDEX(tblДані[],MATCH(I$5+$B18&Відображення_імені,tblДані[ДАТА Й ЧАС]&tblДані[ХТО],0),3),\"\")","v":"Повернення додому"}]
[null,"18:00:00",{"$f":"IFERROR(INDEX(tblДані[],MATCH(C$5+$B19&Відображення_імені,tblДані[ДАТА Й ЧАС]&tblДані[ХТО],0),3),\"\")","v":"Прийом ліків"},{"$f":"IFERROR(INDEX(tblДані[],MATCH(D$5+$B19&Відображення_імені,tblДані[ДАТА Й ЧАС]&tblДані[ХТО],0),3),\"\")","v":""},{"$f":"IFERROR(INDEX(tblДані[],MATCH(E$5+$B19&Відображення_імені,tblДані[ДАТА Й ЧАС]&tblДані[ХТО],0),3),\"\")","v":""},{"$f":"IFERROR(INDEX(tblДані[],MATCH(F$5+$B19&Відображення_імені,tblДані[ДАТА Й ЧАС]&tblДані[ХТО],0),3),\"\")","v":""},{"$f":"IFERROR(INDEX(tblДані[],MATCH(G$5+$B19&Відображення_імені,tblДані[ДАТА Й ЧАС]&tblДані[ХТО],0),3),\"\")","v":""},{"$f":"IFERROR(INDEX(tblДані[],MATCH(H$5+$B19&Відображення_імені,tblДані[ДАТА Й ЧАС]&tblДані[ХТО],0),3),\"\")","v":""},{"$f":"IFERROR(INDEX(tblДані[],MATCH(I$5+$B19&Відображення_імені,tblДані[ДАТА Й ЧАС]&tblДані[ХТО],0),3),\"\")","v":""}]
[null,"19:00:00",{"$f":"IFERROR(INDEX(tblДані[],MATCH(C$5+$B20&Відображення_імені,tblДані[ДАТА Й ЧАС]&tblДані[ХТО],0),3),\"\")","v":""},{"$f":"IFERROR(INDEX(tblДані[],MATCH(D$5+$B20&Відображення_імені,tblДані[ДАТА Й ЧАС]&tblДані[ХТО],0),3),\"\")","v":""},{"$f":"IFERROR(INDEX(tblДані[],MATCH(E$5+$B20&Відображення_імені,tblДані[ДАТА Й ЧАС]&tblДані[ХТО],0),3),\"\")","v":""},{"$f":"IFERROR(INDEX(tblДані[],MATCH(F$5+$B20&Відображення_імені,tblДані[ДАТА Й ЧАС]&tblДані[ХТО],0),3),\"\")","v":""},{"$f":"IFERROR(INDEX(tblДані[],MATCH(G$5+$B20&Відображення_імені,tblДані[ДАТА Й ЧАС]&tblДані[ХТО],0),3),\"\")","v":""},{"$f":"IFERROR(INDEX(tblДані[],MATCH(H$5+$B20&Відображення_імені,tblДані[ДАТА Й ЧАС]&tblДані[ХТО],0),3),\"\")","v":""},{"$f":"IFERROR(INDEX(tblДані[],MATCH(I$5+$B20&Відображення_імені,tblДані[ДАТА Й ЧАС]&tblДані[ХТО],0),3),\"\")","v":""}]
[null,"20:00:00",{"$f":"IFERROR(INDEX(tblДані[],MATCH(C$5+$B21&Відображення_імені,tblДані[ДАТА Й ЧАС]&tblДані[ХТО],0),3),\"\")","v":"Родинний кіносеанс"},{"$f":"IFERROR(INDEX(tblДані[],MATCH(D$5+$B21&Відображення_імені,tblДані[ДАТА Й ЧАС]&tblДані[ХТО],0),3),\"\")","v":""},{"$f":"IFERROR(INDEX(tblДані[],MATCH(E$5+$B21&Відображення_імені,tblДані[ДАТА Й ЧАС]&tblДані[ХТО],0),3),\"\")","v":""},{"$f":"IFERROR(INDEX(tblДані[],MATCH(F$5+$B21&Відображення_імені,tblДані[ДАТА Й ЧАС]&tblДані[ХТО],0),3),\"\")","v":"Феєрверк"},{"$f":"IFERROR(INDEX(tblДані[],MATCH(G$5+$B21&Відображення_імені,tblДані[ДАТА Й ЧАС]&tblДані[ХТО],0),3),\"\")","v":""},{"$f":"IFERROR(INDEX(tblДані[],MATCH(H$5+$B21&Відображення_імені,tblДані[ДАТА Й ЧАС]&tblДані[ХТО],0),3),\"\")","v":""},{"$f":"IFERROR(INDEX(tblДані[],MATCH(I$5+$B21&Відображення_імені,tblДані[ДАТА Й ЧАС]&tblДані[ХТО],0),3),\"\")","v":""}]
[null,"21:00:00",{"$f":"IFERROR(INDEX(tblДані[],MATCH(C$5+$B22&Відображення_імені,tblДані[ДАТА Й ЧАС]&tblДані[ХТО],0),3),\"\")","v":""},{"$f":"IFERROR(INDEX(tblДані[],MATCH(D$5+$B22&Відображення_імені,tblДані[ДАТА Й ЧАС]&tblДані[ХТО],0),3),\"\")","v":""},{"$f":"IFERROR(INDEX(tblДані[],MATCH(E$5+$B22&Відображення_імені,tblДані[ДАТА Й ЧАС]&tblДані[ХТО],0),3),\"\")","v":""},{"$f":"IFERROR(INDEX(tblДані[],MATCH(F$5+$B22&Відображення_імені,tblДані[ДАТА Й ЧАС]&tblДані[ХТО],0),3),\"\")","v":""},{"$f":"IFERROR(INDEX(tblДані[],MATCH(G$5+$B22&Відображення_імені,tblДані[ДАТА Й ЧАС]&tblДані[ХТО],0),3),\"\")","v":""},{"$f":"IFERROR(INDEX(tblДані[],MATCH(H$5+$B22&Відображення_імені,tblДані[ДАТА Й ЧАС]&tblДані[ХТО],0),3),\"\")","v":""},{"$f":"IFERROR(INDEX(tblДані[],MATCH(I$5+$B22&Відображення_імені,tblДані[ДАТА Й ЧАС]&tblДані[ХТО],0),3),\"\")","v":""}]
[null,"22:00:00",{"$f":"IFERROR(INDEX(tblДані[],MATCH(C$5+$B23&Відображення_імені,tblДані[ДАТА Й ЧАС]&tblДані[ХТО],0),3),\"\")","v":""},{"$f":"IFERROR(INDEX(tblДані[],MATCH(D$5+$B23&Відображення_імені,tblДані[ДАТА Й ЧАС]&tblДані[ХТО],0),3),\"\")","v":""},{"$f":"IFERROR(INDEX(tblДані[],MATCH(E$5+$B23&Відображення_імені,tblДані[ДАТА Й ЧАС]&tblДані[ХТО],0),3),\"\")","v":""},{"$f":"IFERROR(INDEX(tblДані[],MATCH(F$5+$B23&Відображення_імені,tblДані[ДАТА Й ЧАС]&tblДані[ХТО],0),3),\"\")","v":""},{"$f":"IFERROR(INDEX(tblДані[],MATCH(G$5+$B23&Відображення_імені,tblДані[ДАТА Й ЧАС]&tblДані[ХТО],0),3),\"\")","v":""},{"$f":"IFERROR(INDEX(tblДані[],MATCH(H$5+$B23&Відображення_імені,tblДані[ДАТА Й ЧАС]&tblДані[ХТО],0),3),\"\")","v":""},{"$f":"IFERROR(INDEX(tblДані[],MATCH(I$5+$B23&Відображення_імені,tblДані[ДАТА Й ЧАС]&tblДані[ХТО],0),3),\"\")","v":""}]

{"sheet":"Введення даних","index":1,"n_rows":14,"n_cols":4,"rows_kept":14}
[null,"ВВЕДЕННЯ ДАНИХ"]
[]
[null,"ДАТА Й ЧАС","ХТО","ЗАВДАННЯ"]
[null,"2012-07-02T08:00:00","Алла","Візит до лікаря"]
[null,"2012-07-02T18:00:00","Мар’ян","Прийом ліків"]
[null,"2012-07-02T18:30:00","Мар’ян","Вечеря з Вікою"]
[null,"2012-07-02T20:00:00","Мар’ян","Родинний кіносеанс"]
[null,"2012-07-03T16:00:00","Мар’ян","Виїзд на дачу"]
[null,"2012-07-04T10:00:00","Мар’ян","Парад у центрі міста"]
[null,"2012-07-05T20:00:00","Мар’ян","Феєрверк"]
[null,"2012-07-06T11:00:00","Мар’ян","Пікнік із родичами"]
[null,"2012-07-07","Мар’ян","Пікнік із друзями"]
[null,"2012-07-08T17:00:00","Мар’ян","Повернення додому"]
[null,"2012-07-02T10:00:00","Алла","Музична школа"]

{"sheet":"Пошук за іменем","index":2,"n_rows":132,"n_cols":2,"rows_kept":132,"hidden":true,"merged":[[0,0,0,1]]}
["Вміст цього аркуша заповнює розкривний список імен на аркуші «Розклад» в клітинці H3. Будь-які зміни, застосовані до цього аркуша, можуть призвести до помилки."]
["УНІКАЛЬНЕ ІМ’Я","НОМЕР РЯДКА"]
[{"$f":"IFERROR(INDEX(Поле_Хто,MATCH(0,COUNTIF($A$2:A2,Поле_Хто),0)),\"\")","v":"Алла"},{"$f":"IF(A3=\"\",\"\",ROW())","v":3}]
[{"$f":"IFERROR(INDEX(Поле_Хто,MATCH(0,COUNTIF($A$2:A3,Поле_Хто),0)),\"\")","v":"Мар’ян"},{"$f":"IF(A4=\"\",\"\",ROW())","v":4}]
[{"$f":"IFERROR(INDEX(Поле_Хто,MATCH(0,COUNTIF($A$2:A4,Поле_Хто),0)),\"\")","v":""},""]
[{"$f":"IFERROR(INDEX(Поле_Хто,MATCH(0,COUNTIF($A$2:A5,Поле_Хто),0)),\"\")","v":""},""]
[{"$f":"IFERROR(INDEX(Поле_Хто,MATCH(0,COUNTIF($A$2:A6,Поле_Хто),0)),\"\")","v":""},""]
[{"$f":"IFERROR(INDEX(Поле_Хто,MATCH(0,COUNTIF($A$2:A7,Поле_Хто),0)),\"\")","v":""},""]
[{"$f":"IFERROR(INDEX(Поле_Хто,MATCH(0,COUNTIF($A$2:A8,Поле_Хто),0)),\"\")","v":""},""]
[{"$f":"IFERROR(INDEX(Поле_Хто,MATCH(0,COUNTIF($A$2:A9,Поле_Хто),0)),\"\")","v":""},""]
[{"$f":"IFERROR(INDEX(Поле_Хто,MATCH(0,COUNTIF($A$2:A10,Поле_Хто),0)),\"\")","v":""},""]
[{"$f":"IFERROR(INDEX(Поле_Хто,MATCH(0,COUNTIF($A$2:A11,Поле_Хто),0)),\"\")","v":""},""]
[{"$f":"IFERROR(INDEX(Поле_Хто,MATCH(0,COUNTIF($A$2:A12,Поле_Хто),0)),\"\")","v":""},""]
[{"$f":"IFERROR(INDEX(Поле_Хто,MATCH(0,COUNTIF($A$2:A13,Поле_Хто),0)),\"\")","v":""},""]
[{"$f":"IFERROR(INDEX(Поле_Хто,MATCH(0,COUNTIF($A$2:A14,Поле_Хто),0)),\"\")","v":""},""]
[{"$f":"IFERROR(INDEX(Поле_Хто,MATCH(0,COUNTIF($A$2:A15,Поле_Хто),0)),\"\")","v":""},""]
[{"$f":"IFERROR(INDEX(Поле_Хто,MATCH(0,COUNTIF($A$2:A16,Поле_Хто),0)),\"\")","v":""},""]
[{"$f":"IFERROR(INDEX(Поле_Хто,MATCH(0,COUNTIF($A$2:A17,Поле_Хто),0)),\"\")","v":""},""]
[{"$f":"IFERROR(INDEX(Поле_Хто,MATCH(0,COUNTIF($A$2:A18,Поле_Хто),0)),\"\")","v":""},""]
[{"$f":"IFERROR(INDEX(Поле_Хто,MATCH(0,COUNTIF($A$2:A19,Поле_Хто),0)),\"\")","v":""},""]
[{"$f":"IFERROR(INDEX(Поле_Хто,MATCH(0,COUNTIF($A$2:A20,Поле_Хто),0)),\"\")","v":""},""]
[{"$f":"IFERROR(INDEX(Поле_Хто,MATCH(0,COUNTIF($A$2:A21,Поле_Хто),0)),\"\")","v":""},""]
[{"$f":"IFERROR(INDEX(Поле_Хто,MATCH(0,COUNTIF($A$2:A22,Поле_Хто),0)),\"\")","v":""},""]
[{"$f":"IFERROR(INDEX(Поле_Хто,MATCH(0,COUNTIF($A$2:A23,Поле_Хто),0)),\"\")","v":""},""]
[{"$f":"IFERROR(INDEX(Поле_Хто,MATCH(0,COUNTIF($A$2:A24,Поле_Хто),0)),\"\")","v":""},""]
[{"$f":"IFERROR(INDEX(Поле_Хто,MATCH(0,COUNTIF($A$2:A25,Поле_Хто),0)),\"\")","v":""},""]
[{"$f":"IFERROR(INDEX(Поле_Хто,MATCH(0,COUNTIF($A$2:A26,Поле_Хто),0)),\"\")","v":""},""]
[{"$f":"IFERROR(INDEX(Поле_Хто,MATCH(0,COUNTIF($A$2:A27,Поле_Хто),0)),\"\")","v":""},""]
[{"$f":"IFERROR(INDEX(Поле_Хто,MATCH(0,COUNTIF($A$2:A28,Поле_Хто),0)),\"\")","v":""},""]
[{"$f":"IFERROR(INDEX(Поле_Хто,MATCH(0,COUNTIF($A$2:A29,Поле_Хто),0)),\"\")","v":""},""]
[{"$f":"IFERROR(INDEX(Поле_Хто,MATCH(0,COUNTIF($A$2:A30,Поле_Хто),0)),\"\")","v":""},""]
[{"$f":"IFERROR(INDEX(Поле_Хто,MATCH(0,COUNTIF($A$2:A31,Поле_Хто),0)),\"\")","v":""},""]
[{"$f":"IFERROR(INDEX(Поле_Хто,MATCH(0,COUNTIF($A$2:A32,Поле_Хто),0)),\"\")","v":""},""]
[{"$f":"IFERROR(INDEX(Поле_Хто,MATCH(0,COUNTIF($A$2:A33,Поле_Хто),0)),\"\")","v":""},""]
[{"$f":"IFERROR(INDEX(Поле_Хто,MATCH(0,COUNTIF($A$2:A34,Поле_Хто),0)),\"\")","v":""},""]
[{"$f":"IFERROR(INDEX(Поле_Хто,MATCH(0,COUNTIF($A$2:A35,Поле_Хто),0)),\"\")","v":""},""]
[{"$f":"IFERROR(INDEX(Поле_Хто,MATCH(0,COUNTIF($A$2:A36,Поле_Хто),0)),\"\")","v":""},""]
[{"$f":"IFERROR(INDEX(Поле_Хто,MATCH(0,COUNTIF($A$2:A37,Поле_Хто),0)),\"\")","v":""},""]
[{"$f":"IFERROR(INDEX(Поле_Хто,MATCH(0,COUNTIF($A$2:A38,Поле_Хто),0)),\"\")","v":""},""]
[{"$f":"IFERROR(INDEX(Поле_Хто,MATCH(0,COUNTIF($A$2:A39,Поле_Хто),0)),\"\")","v":""},""]
[{"$f":"IFERROR(INDEX(Поле_Хто,MATCH(0,COUNTIF($A$2:A40,Поле_Хто),0)),\"\")","v":""},""]
[{"$f":"IFERROR(INDEX(Поле_Хто,MATCH(0,COUNTIF($A$2:A41,Поле_Хто),0)),\"\")","v":""},""]
[{"$f":"IFERROR(INDEX(Поле_Хто,MATCH(0,COUNTIF($A$2:A42,Поле_Хто),0)),\"\")","v":""},""]
[{"$f":"IFERROR(INDEX(Поле_Хто,MATCH(0,COUNTIF($A$2:A43,Поле_Хто),0)),\"\")","v":""},""]
[{"$f":"IFERROR(INDEX(Поле_Хто,MATCH(0,COUNTIF($A$2:A44,Поле_Хто),0)),\"\")","v":""},""]
[{"$f":"IFERROR(INDEX(Поле_Хто,MATCH(0,COUNTIF($A$2:A45,Поле_Хто),0)),\"\")","v":""},""]
[{"$f":"IFERROR(INDEX(Поле_Хто,MATCH(0,COUNTIF($A$2:A46,Поле_Хто),0)),\"\")","v":""},""]
[{"$f":"IFERROR(INDEX(Поле_Хто,MATCH(0,COUNTIF($A$2:A47,Поле_Хто),0)),\"\")","v":""},""]
[{"$f":"IFERROR(INDEX(Поле_Хто,MATCH(0,COUNTIF($A$2:A48,Поле_Хто),0)),\"\")","v":""},""]
[{"$f":"IFERROR(INDEX(Поле_Хто,MATCH(0,COUNTIF($A$2:A49,Поле_Хто),0)),\"\")","v":""},""]
[{"$f":"IFERROR(INDEX(Поле_Хто,MATCH(0,COUNTIF($A$2:A50,Поле_Хто),0)),\"\")","v":""},""]
[{"$f":"IFERROR(INDEX(Поле_Хто,MATCH(0,COUNTIF($A$2:A51,Поле_Хто),0)),\"\")","v":""},""]
[{"$f":"IFERROR(INDEX(Поле_Хто,MATCH(0,COUNTIF($A$2:A52,Поле_Хто),0)),\"\")","v":""},""]
[{"$f":"IFERROR(INDEX(Поле_Хто,MATCH(0,COUNTIF($A$2:A53,Поле_Хто),0)),\"\")","v":""},""]
[{"$f":"IFERROR(INDEX(Поле_Хто,MATCH(0,COUNTIF($A$2:A54,Поле_Хто),0)),\"\")","v":""},""]
[{"$f":"IFERROR(INDEX(Поле_Хто,MATCH(0,COUNTIF($A$2:A55,Поле_Хто),0)),\"\")","v":""},""]
[{"$f":"IFERROR(INDEX(Поле_Хто,MATCH(0,COUNTIF($A$2:A56,Поле_Хто),0)),\"\")","v":""},""]
[{"$f":"IFERROR(INDEX(Поле_Хто,MATCH(0,COUNTIF($A$2:A57,Поле_Хто),0)),\"\")","v":""},""]
[{"$f":"IFERROR(INDEX(Поле_Хто,MATCH(0,COUNTIF($A$2:A58,Поле_Хто),0)),\"\")","v":""},""]
[{"$f":"IFERROR(INDEX(Поле_Хто,MATCH(0,COUNTIF($A$2:A59,Поле_Хто),0)),\"\")","v":""},""]
[{"$f":"IFERROR(INDEX(Поле_Хто,MATCH(0,COUNTIF($A$2:A60,Поле_Хто),0)),\"\")","v":""},""]
[{"$f":"IFERROR(INDEX(Поле_Хто,MATCH(0,COUNTIF($A$2:A61,Поле_Хто),0)),\"\")","v":""},""]
[{"$f":"IFERROR(INDEX(Поле_Хто,MATCH(0,COUNTIF($A$2:A62,Поле_Хто),0)),\"\")","v":""},""]
[{"$f":"IFERROR(INDEX(Поле_Хто,MATCH(0,COUNTIF($A$2:A63,Поле_Хто),0)),\"\")","v":""},""]
[{"$f":"IFERROR(INDEX(Поле_Хто,MATCH(0,COUNTIF($A$2:A64,Поле_Хто),0)),\"\")","v":""},""]
[{"$f":"IFERROR(INDEX(Поле_Хто,MATCH(0,COUNTIF($A$2:A65,Поле_Хто),0)),\"\")","v":""},""]
[{"$f":"IFERROR(INDEX(Поле_Хто,MATCH(0,COUNTIF($A$2:A66,Поле_Хто),0)),\"\")","v":""},""]
[{"$f":"IFERROR(INDEX(Поле_Хто,MATCH(0,COUNTIF($A$2:A67,Поле_Хто),0)),\"\")","v":""},{"$f":"IF(A68=\"\",\"\",ROW())","v":""}]
[{"$f":"IFERROR(INDEX(Поле_Хто,MATCH(0,COUNTIF($A$2:A68,Поле_Хто),0)),\"\")","v":""},""]
[{"$f":"IFERROR(INDEX(Поле_Хто,MATCH(0,COUNTIF($A$2:A69,Поле_Хто),0)),\"\")","v":""},""]
[{"$f":"IFERROR(INDEX(Поле_Хто,MATCH(0,COUNTIF($A$2:A70,Поле_Хто),0)),\"\")","v":""},""]
[{"$f":"IFERROR(INDEX(Поле_Хто,MATCH(0,COUNTIF($A$2:A71,Поле_Хто),0)),\"\")","v":""},""]
[{"$f":"IFERROR(INDEX(Поле_Хто,MATCH(0,COUNTIF($A$2:A72,Поле_Хто),0)),\"\")","v":""},""]
[{"$f":"IFERROR(INDEX(Поле_Хто,MATCH(0,COUNTIF($A$2:A73,Поле_Хто),0)),\"\")","v":""},""]
[{"$f":"IFERROR(INDEX(Поле_Хто,MATCH(0,COUNTIF($A$2:A74,Поле_Хто),0)),\"\")","v":""},""]
[{"$f":"IFERROR(INDEX(Поле_Хто,MATCH(0,COUNTIF($A$2:A75,Поле_Хто),0)),\"\")","v":""},""]
[{"$f":"IFERROR(INDEX(Поле_Хто,MATCH(0,COUNTIF($A$2:A76,Поле_Хто),0)),\"\")","v":""},""]
[{"$f":"IFERROR(INDEX(Поле_Хто,MATCH(0,COUNTIF($A$2:A77,Поле_Хто),0)),\"\")","v":""},""]
[{"$f":"IFERROR(INDEX(Поле_Хто,MATCH(0,COUNTIF($A$2:A78,Поле_Хто),0)),\"\")","v":""},""]
[{"$f":"IFERROR(INDEX(Поле_Хто,MATCH(0,COUNTIF($A$2:A79,Поле_Хто),0)),\"\")","v":""},""]
[{"$f":"IFERROR(INDEX(Поле_Хто,MATCH(0,COUNTIF($A$2:A80,Поле_Хто),0)),\"\")","v":""},""]
[{"$f":"IFERROR(INDEX(Поле_Хто,MATCH(0,COUNTIF($A$2:A81,Поле_Хто),0)),\"\")","v":""},""]
[{"$f":"IFERROR(INDEX(Поле_Хто,MATCH(0,COUNTIF($A$2:A82,Поле_Хто),0)),\"\")","v":""},""]
[{"$f":"IFERROR(INDEX(Поле_Хто,MATCH(0,COUNTIF($A$2:A83,Поле_Хто),0)),\"\")","v":""},""]
[{"$f":"IFERROR(INDEX(Поле_Хто,MATCH(0,COUNTIF($A$2:A84,Поле_Хто),0)),\"\")","v":""},""]
[{"$f":"IFERROR(INDEX(Поле_Хто,MATCH(0,COUNTIF($A$2:A85,Поле_Хто),0)),\"\")","v":""},""]
[{"$f":"IFERROR(INDEX(Поле_Хто,MATCH(0,COUNTIF($A$2:A86,Поле_Хто),0)),\"\")","v":""},""]
[{"$f":"IFERROR(INDEX(Поле_Хто,MATCH(0,COUNTIF($A$2:A87,Поле_Хто),0)),\"\")","v":""},""]
[{"$f":"IFERROR(INDEX(Поле_Хто,MATCH(0,COUNTIF($A$2:A88,Поле_Хто),0)),\"\")","v":""},""]
[{"$f":"IFERROR(INDEX(Поле_Хто,MATCH(0,COUNTIF($A$2:A89,Поле_Хто),0)),\"\")","v":""},""]
[{"$f":"IFERROR(INDEX(Поле_Хто,MATCH(0,COUNTIF($A$2:A90,Поле_Хто),0)),\"\")","v":""},""]
[{"$f":"IFERROR(INDEX(Поле_Хто,MATCH(0,COUNTIF($A$2:A91,Поле_Хто),0)),\"\")","v":""},""]
[{"$f":"IFERROR(INDEX(Поле_Хто,MATCH(0,COUNTIF($A$2:A92,Поле_Хто),0)),\"\")","v":""},""]
[{"$f":"IFERROR(INDEX(Поле_Хто,MATCH(0,COUNTIF($A$2:A93,Поле_Хто),0)),\"\")","v":""},""]
[{"$f":"IFERROR(INDEX(Поле_Хто,MATCH(0,COUNTIF($A$2:A94,Поле_Хто),0)),\"\")","v":""},""]
[{"$f":"IFERROR(INDEX(Поле_Хто,MATCH(0,COUNTIF($A$2:A95,Поле_Хто),0)),\"\")","v":""},""]
[{"$f":"IFERROR(INDEX(Поле_Хто,MATCH(0,COUNTIF($A$2:A96,Поле_Хто),0)),\"\")","v":""},""]
[{"$f":"IFERROR(INDEX(Поле_Хто,MATCH(0,COUNTIF($A$2:A97,Поле_Хто),0)),\"\")","v":""},""]
[{"$f":"IFERROR(INDEX(Поле_Хто,MATCH(0,COUNTIF($A$2:A98,Поле_Хто),0)),\"\")","v":""},""]
[{"$f":"IFERROR(INDEX(Поле_Хто,MATCH(0,COUNTIF($A$2:A99,Поле_Хто),0)),\"\")","v":""},""]
[{"$f":"IFERROR(INDEX(Поле_Хто,MATCH(0,COUNTIF($A$2:A100,Поле_Хто),0)),\"\")","v":""},""]
[{"$f":"IFERROR(INDEX(Поле_Хто,MATCH(0,COUNTIF($A$2:A101,Поле_Хто),0)),\"\")","v":""},""]
[{"$f":"IFERROR(INDEX(Поле_Хто,MATCH(0,COUNTIF($A$2:A102,Поле_Хто),0)),\"\")","v":""},""]
[{"$f":"IFERROR(INDEX(Поле_Хто,MATCH(0,COUNTIF($A$2:A103,Поле_Хто),0)),\"\")","v":""},""]
[{"$f":"IFERROR(INDEX(Поле_Хто,MATCH(0,COUNTIF($A$2:A104,Поле_Хто),0)),\"\")","v":""},""]
[{"$f":"IFERROR(INDEX(Поле_Хто,MATCH(0,COUNTIF($A$2:A105,Поле_Хто),0)),\"\")","v":""},""]
[{"$f":"IFERROR(INDEX(Поле_Хто,MATCH(0,COUNTIF($A$2:A106,Поле_Хто),0)),\"\")","v":""},""]
[{"$f":"IFERROR(INDEX(Поле_Хто,MATCH(0,COUNTIF($A$2:A107,Поле_Хто),0)),\"\")","v":""},""]
[{"$f":"IFERROR(INDEX(Поле_Хто,MATCH(0,COUNTIF($A$2:A108,Поле_Хто),0)),\"\")","v":""},""]
[{"$f":"IFERROR(INDEX(Поле_Хто,MATCH(0,COUNTIF($A$2:A109,Поле_Хто),0)),\"\")","v":""},""]
[{"$f":"IFERROR(INDEX(Поле_Хто,MATCH(0,COUNTIF($A$2:A110,Поле_Хто),0)),\"\")","v":""},""]
[{"$f":"IFERROR(INDEX(Поле_Хто,MATCH(0,COUNTIF($A$2:A111,Поле_Хто),0)),\"\")","v":""},""]
[{"$f":"IFERROR(INDEX(Поле_Хто,MATCH(0,COUNTIF($A$2:A112,Поле_Хто),0)),\"\")","v":""},""]
[{"$f":"IFERROR(INDEX(Поле_Хто,MATCH(0,COUNTIF($A$2:A113,Поле_Хто),0)),\"\")","v":""},""]
[{"$f":"IFERROR(INDEX(Поле_Хто,MATCH(0,COUNTIF($A$2:A114,Поле_Хто),0)),\"\")","v":""},""]
[{"$f":"IFERROR(INDEX(Поле_Хто,MATCH(0,COUNTIF($A$2:A115,Поле_Хто),0)),\"\")","v":""},""]
[{"$f":"IFERROR(INDEX(Поле_Хто,MATCH(0,COUNTIF($A$2:A116,Поле_Хто),0)),\"\")","v":""},""]
[{"$f":"IFERROR(INDEX(Поле_Хто,MATCH(0,COUNTIF($A$2:A117,Поле_Хто),0)),\"\")","v":""},""]
[{"$f":"IFERROR(INDEX(Поле_Хто,MATCH(0,COUNTIF($A$2:A118,Поле_Хто),0)),\"\")","v":""},""]
[{"$f":"IFERROR(INDEX(Поле_Хто,MATCH(0,COUNTIF($A$2:A119,Поле_Хто),0)),\"\")","v":""},""]
[{"$f":"IFERROR(INDEX(Поле_Хто,MATCH(0,COUNTIF($A$2:A120,Поле_Хто),0)),\"\")","v":""},""]
[{"$f":"IFERROR(INDEX(Поле_Хто,MATCH(0,COUNTIF($A$2:A121,Поле_Хто),0)),\"\")","v":""},""]
[{"$f":"IFERROR(INDEX(Поле_Хто,MATCH(0,COUNTIF($A$2:A122,Поле_Хто),0)),\"\")","v":""},""]
[{"$f":"IFERROR(INDEX(Поле_Хто,MATCH(0,COUNTIF($A$2:A123,Поле_Хто),0)),\"\")","v":""},""]
[{"$f":"IFERROR(INDEX(Поле_Хто,MATCH(0,COUNTIF($A$2:A124,Поле_Хто),0)),\"\")","v":""},""]
[{"$f":"IFERROR(INDEX(Поле_Хто,MATCH(0,COUNTIF($A$2:A125,Поле_Хто),0)),\"\")","v":""},""]
[{"$f":"IFERROR(INDEX(Поле_Хто,MATCH(0,COUNTIF($A$2:A126,Поле_Хто),0)),\"\")","v":""},""]
[{"$f":"IFERROR(INDEX(Поле_Хто,MATCH(0,COUNTIF($A$2:A127,Поле_Хто),0)),\"\")","v":""},""]
[{"$f":"IFERROR(INDEX(Поле_Хто,MATCH(0,COUNTIF($A$2:A128,Поле_Хто),0)),\"\")","v":""},""]
[{"$f":"IFERROR(INDEX(Поле_Хто,MATCH(0,COUNTIF($A$2:A129,Поле_Хто),0)),\"\")","v":""},""]
[{"$f":"IFERROR(INDEX(Поле_Хто,MATCH(0,COUNTIF($A$2:A130,Поле_Хто),0)),\"\")","v":""},""]
[{"$f":"IFERROR(INDEX(Поле_Хто,MATCH(0,COUNTIF($A$2:A131,Поле_Хто),0)),\"\")","v":""},{"$f":"IF(A132=\"\",\"\",ROW())","v":""}]